lending/lending_fUSD_20240512
["ID","MTS","AMOUNT","RATE_DAILY","PERIOD"]
[326865730,1715524240686,-500.0,0.0001237,2]
[326865731,1715524240696,-500.0,0.0001237,2]
[326865732,1715524240707,-4040.81,0.0001237,2]
[326865733,1715524240718,-4040.81,0.0001237,2]
[326865734,1715524240730,-1915.11,0.0001237,2]
[326865735,1715524240740,-4040.81,0.0001237,2]
[326865736,1715524240750,-1915.11,0.0001237,2]
[326865737,1715524240760,-4040.81,0.0001237,2]
[326865738,1715524240770,-1915.11,0.0001237,2]
[326865739,1715524240780,-4040.81,0.0001237,2]
[326865740,1715524240791,-1745.71249005,0.0001237,2]
[326865741,1715524240935,-169.39750995,0.0001237,2]
[326865742,1715524240945,-1296.8132309,0.0001237,2]
[326865743,1715524240958,-2743.9967691,0.0001237,2]
[326865744,1715524240968,-1915.11,0.0001237,2]
[326865745,1715524240980,-4040.81,0.0001237,2]
[326865746,1715524240989,-3173.49,0.0001237,2]
[326865747,1715524241000,-3173.49,0.0001237,2]
[326865748,1715524241011,-3173.49,0.0001237,2]
[326865749,1715524241021,-3173.49,0.0001237,2]
[326865750,1715524241031,-3173.49,0.0001237,2]
[326865751,1715524241041,-1672.85,0.0001237,2]
[326865752,1715524241051,-1672.85,0.0001237,2]
[326865753,1715524241061,-2863.87836971,0.0001237,2]
[326865754,1715524241073,-272.97766749,0.0001237,2]
[326865755,1715524241085,-36.6339628,0.0001237,2]
[326865756,1715524241095,-1672.85,0.0001237,2]
[326865757,1715524241104,-3173.49,0.0001237,2]
[326865758,1715524241114,-500.0,0.0001237,2]
[326865759,1715524241124,-500.0,0.0001237,2]
[326865760,1715524241133,-272.97744065,0.0001237,2]
[326865761,1715524241956,-638.27255935,0.0001237,2]
[326865762,1715524241967,-500.0,0.0001237,2]
[326865763,1715524241978,-911.25,0.0001237,2]
[326865764,1715524241989,-500.0,0.0001237,2]
[326865765,1715524242000,-500.0,0.0001237,2]
[326865766,1715524242011,-911.25,0.0001237,2]
[326865767,1715524242021,-500.0,0.0001237,2]
[326865768,1715524242032,-911.25,0.0001237,2]
[326865769,1715524242042,-500.0,0.0001237,2]
[326865770,1715524242052,-338.20394055,0.0001237,2]
[326865793,1715524243251,-899.72694,0.00012271,2]
[326865795,1715524243261,-500.0,0.00012369,2]
[326865797,1715524243271,-573.04605945,0.0001237,2]
[326865799,1715524243280,-630.6,0.0001237,2]
[326865800,1715524243289,-500.0,0.0001237,2]
[326865801,1715524243298,-500.0,0.0001237,2]
[326865802,1715524243307,-500.0,0.0001237,2]
[326865803,1715524243317,-500.0,0.0001237,2]
[326865804,1715524243326,-512.34499103,0.0001237,2]
[326865805,1715524243336,-610.89397654,0.0001237,2]
[326865806,1715524243345,-1659.25,0.0001237,2]
[326865807,1715524243355,-1659.25,0.0001237,2]
[326865808,1715524243364,-637.64,0.0001237,2]
[326865809,1715524243373,-1659.25,0.0001237,2]
[326865810,1715524243383,-637.64,0.0001237,2]
[326865811,1715524243392,-1659.25,0.0001237,2]
[326865812,1715524243402,-637.64,0.0001237,2]
[326865813,1715524243411,-1659.25,0.0001237,2]
[326865814,1715524243421,-637.64,0.0001237,2]
[326865815,1715524243430,-637.64,0.0001237,2]
[326865816,1715524243439,-1659.25,0.0001237,2]
[326865817,1715524243449,-500.0,0.0001237,2]
[326865818,1715524243458,-637.64,0.0001237,2]
[326865819,1715524243468,-1659.25,0.0001237,2]
[326865820,1715524243478,-500.0,0.0001237,2]
[326865821,1715524243488,-637.64,0.0001237,2]
[326865822,1715524243498,-500.0,0.0001237,2]
[326865823,1715524243508,-500.0,0.0001237,2]
[326865824,1715524243517,-500.0,0.0001237,2]
[326865825,1715524243527,-500.0,0.0001237,2]
[326865826,1715524243536,-500.0,0.0001237,2]
[326865827,1715524243546,-500.0,0.0001237,2]
[326865828,1715524243555,-3994.07,0.0001237,2]
[326865829,1715524243565,-1010.95,0.0001237,2]
[326865830,1715524243574,-1010.95,0.0001237,2]
[326865831,1715524243584,-1010.95,0.0001237,2]
[326865832,1715524243594,-1010.95,0.0001237,2]
[326865838,1715524243839,-1010.95,0.0001237,2]
[326865839,1715524243893,-500.0,0.0001237,2]
[326865840,1715524243902,-500.0,0.0001237,2]
[326865841,1715524243911,-500.0,0.0001237,2]
[326865842,1715524243921,-500.0,0.0001237,2]
[326865843,1715524243930,-541.0,0.0001237,2]
[326865844,1715524243939,-500.0,0.0001237,2]
[326865845,1715524243949,-500.0,0.0001237,2]
[326865846,1715524243958,-541.0,0.0001237,2]
[326865847,1715524243968,-394.60318798,0.0001237,2]
[326865848,1715524243977,-541.0,0.0001237,2]
[326865849,1715524243989,-541.0,0.0001237,2]
[326865850,1715524243999,-8552.8,0.0001237,2]
[326865851,1715524244008,-541.0,0.0001237,2]
[326865852,1715524244016,-8552.8,0.0001237,2]
[326865853,1715524244026,-541.0,0.0001237,2]
[326865854,1715524244034,-8552.8,0.0001237,2]
[326865855,1715524244043,-541.0,0.0001237,2]
[326865856,1715524244052,-541.0,0.0001237,2]
[326865857,1715524244062,-500.0,0.0001237,2]
[326865858,1715524244071,-500.0,0.0001237,2]
[326865859,1715524244081,-1958.3,0.0001237,2]
[326865860,1715524244090,-500.0,0.0001237,2]
[326865861,1715524244099,-500.0,0.0001237,2]
[326865862,1715524244108,-500.0,0.0001237,2]
[326865863,1715524244117,-1958.3,0.0001237,2]
[326865864,1715524244126,-500.0,0.0001237,2]
[326865865,1715524244136,-1958.3,0.0001237,2]
[326865866,1715524244145,-500.0,0.0001237,2]
[326865867,1715524244155,-500.0,0.0001237,2]
[326865868,1715524244164,-500.0,0.0001237,2]
[326865869,1715524244173,-1958.3,0.0001237,2]
[326865870,1715524244182,-500.0,0.0001237,2]
[326865871,1715524244191,-500.0,0.0001237,2]
[326865872,1715524244200,-500.0,0.0001237,2]
[326865873,1715524244210,-1958.3,0.0001237,2]
[326865874,1715524244219,-500.0,0.0001237,2]
[326865875,1715524244228,-500.0,0.0001237,2]
[326865876,1715524244239,-500.0,0.0001237,2]
[326865877,1715524244248,-500.0,0.0001237,2]
[326865878,1715524244257,-1958.3,0.0001237,2]
[326865879,1715524244267,-500.0,0.0001237,2]
[326865880,1715524244276,-500.0,0.0001237,2]
[326865881,1715524244286,-1958.3,0.0001237,2]
[326865882,1715524244295,-500.0,0.0001237,2]
[326865883,1715524244305,-500.0,0.0001237,2]
[326865884,1715524244315,-500.0,0.0001237,2]
[326865885,1715524244325,-500.0,0.0001237,2]
[326865886,1715524244335,-500.0,0.0001237,2]
[326865887,1715524244345,-500.0,0.0001237,2]
[326865888,1715524244354,-500.0,0.0001237,2]
[326865889,1715524244364,-500.0,0.0001237,2]
[326865890,1715524244373,-500.0,0.0001237,2]
[326865891,1715524244384,-852.66,0.0001237,2]
[326865892,1715524244394,-500.0,0.0001237,2]
[326865893,1715524244404,-852.66,0.0001237,2]
[326865894,1715524244413,-2480.88,0.0001237,2]
[326865895,1715524244423,-852.66,0.0001237,2]
[326865896,1715524244432,-852.66,0.0001237,2]
[326865897,1715524244442,-2480.88,0.0001237,2]
[326865898,1715524244451,-852.66,0.0001237,2]
[326865899,1715524244460,-2480.88,0.0001237,2]
[326865900,1715524244470,-11543.9,0.0001237,2]
[326865901,1715524244479,-852.66,0.0001237,2]
[326865902,1715524244489,-852.66,0.0001237,2]
[326865903,1715524244497,-6399.37015217,0.0001237,2]
[326865904,1715524245134,-255.471,0.0001237,2]
[326865905,1715524245146,-1015.60123022,0.0001237,2]
[326865906,1715524245164,-361.32,0.0001237,2]
[326865907,1715524245176,-432.917,0.0001237,2]
[326865909,1715524245931,-500.0,0.00012369,2]
[326865910,1715524245940,-434.38,0.0001237,2]
[326865911,1715524245951,-391.68516296,0.0001237,2]
[326865912,1715524245961,-432.0,0.0001237,2]
[326865913,1715524245972,-362.74132644,0.0001237,2]
[326865914,1715524245983,-1021.17545238,0.0001237,2]
[326865915,1715524245995,-437.23867583,0.0001237,2]
[326865916,1715524246004,-852.66,0.0001237,2]
[326865917,1715524246013,-11543.9,0.0001237,2]
[326865918,1715524246023,-2547.35166018,0.0001237,2]
[326865919,1715524246078,-2001.9049487,0.0001237,2]
[326865920,1715524246090,-6994.64339112,0.0001237,2]
[326865921,1715524246099,-11543.9,0.0001237,2]
[326865922,1715524246108,-10037.82230299,0.0001237,2]
[326865923,1715524246150,-669.372316,0.0001237,2]
[326865924,1715524246162,-310.0,0.0001237,2]
[326865925,1715524246173,-526.70538101,0.0001237,2]
[326865926,1715524246182,-2008.15,0.0001237,2]
[326865927,1715524246191,-11543.9,0.0001237,2]
[326865928,1715524246200,-2008.15,0.0001237,2]
[326865929,1715524246209,-2008.15,0.0001237,2]
[326865930,1715524246218,-2008.15,0.0001237,2]
[326865931,1715524246227,-2008.15,0.0001237,2]
[326865932,1715524246238,-2008.15,0.0001237,2]
[326865933,1715524246248,-500.0,0.0001237,2]
[326865934,1715524246257,-2008.15,0.0001237,2]
[326865935,1715524246266,-500.0,0.0001237,2]
[326865936,1715524246275,-2008.15,0.0001237,2]
[326865937,1715524246284,-500.0,0.0001237,2]
[326865938,1715524246293,-500.0,0.0001237,2]
[326865939,1715524246303,-500.0,0.0001237,2]
[326865940,1715524246312,-500.0,0.0001237,2]
[326865941,1715524246321,-500.0,0.0001237,2]
[326865942,1715524246333,-2297.42,0.0001237,2]
[326865943,1715524246342,-2297.42,0.0001237,2]
[326865944,1715524246352,-2297.42,0.0001237,2]
[326865945,1715524246361,-2297.42,0.0001237,2]
[326865946,1715524246370,-2297.42,0.0001237,2]
[326865947,1715524246379,-235.33,0.0001237,2]
[326865948,1715524246388,-500.0,0.0001237,2]
[326865949,1715524246397,-500.0,0.0001237,2]
[326865950,1715524246406,-488227.21106893,0.00012371,2]
[326865951,1715524246425,-332.59159891,0.00012371,2]
[326865952,1715524246436,-620.62,0.00012371,2]
[326865953,1715524246447,-392.4809798,0.00012371,2]
[326865966,1715524247705,-500.0,0.00012369,2]
[326865967,1715524247715,-500.0,0.00012369,2]
[326865968,1715524247724,-500.0,0.0001237,2]
[326865969,1715524247734,-961.5500403,0.00012371,2]
[326865970,1715524247745,-526.5161813,0.00012371,2]
[326865971,1715524247757,-58416.86041885,0.00012371,2]
[326865972,1715524247776,-31577.00041486,0.00012371,2]
[326865973,1715524247787,-3185.59392,0.00012371,2]
[326865974,1715524247835,-500.0,0.00012369,2]
[326865975,1715524247844,-131.43,0.0001237,2]
[326865976,1715524247855,-181.19,0.0001237,2]
[326865977,1715524247864,-341.53220942,0.00012371,2]
[326865981,1715524784389,250.0,0.0001114,2]
[326865983,1715525017178,530.07507119,0.00011161,2]
[326865984,1715525017200,69.74288881,0.00011161,2]
[326865985,1715525068114,250.0,0.00011159,2]
[326866059,1715525262179,250.0,0.00011108,2]
[326866060,1715525285593,499.8483,0.00011161,2]
[326866061,1715525287747,1204.76205397,0.00011161,2]
[326866062,1715525295743,905.59,0.00011132,2]
[326866063,1715525300374,237.2941111,0.00011161,2]
[326866079,1715525432353,-260.4209643,0.00011171,2]
[326866080,1715525432364,-1204.76205397,0.00011172,2]
[326866081,1715525432374,-338.24,0.00011173,2]
[326866082,1715525432383,-200.0,0.000112,4]
[326866083,1715525432393,-500.0,0.000113,4]
[326866084,1715525432402,-661.76,0.00011333,2]
[326866085,1715525432412,-700.0,0.000114,4]
[326866086,1715525432422,-1000.0,0.000115,4]
[326866087,1715525432431,-1200.0,0.000116,4]
[326866088,1715525432440,-1479.44242565,0.0001169,2]
[326866089,1715525432452,-61.20850735,0.0001169,2]
[326866090,1715525432462,-150.99,0.000117,2]
[326866091,1715525432471,-200.0,0.000117,4]
[326866092,1715525432480,-335.7844628,0.0001175,2]
[326866093,1715525432490,-499.99,0.0001175,2]
[326866094,1715525432500,-1233.13431898,0.000118,2]
[326866095,1715525432512,-317.402384,0.000118,2]
[326866096,1715525432523,-200.0,0.000118,4]
[326866097,1715525432532,-840.62,0.00011878,2]
[326866098,1715525432541,-1047.0,0.00011878,2]
[326866099,1715525432552,-300.0,0.00011878,2]
[326866100,1715525432561,-200.0,0.000119,4]
[326866101,1715525432570,-179.53,0.0001199,2]
[326866102,1715525432580,-179.53,0.0001199,2]
[326866103,1715525432590,-179.53,0.0001199,2]
[326866104,1715525432599,-1081.917366,0.00012,2]
[326866121,1715525433100,-1899.62694235,0.00012,2]
[326866128,1715525438651,-640437.64743381,0.00012,2]
[326866129,1715525438660,-1000.0,0.000122,2]
[326866130,1715525438670,-5139.05242711,0.00012244,2]
[326866131,1715525438681,-2565.638036,0.00012244,2]
[326866132,1715525438691,-1000.0,0.00012269,2]
[326866133,1715525438700,-32040.1075,0.00012269,2]
[326866134,1715525438710,-944.20352651,0.0001227,2]
[326866135,1715525438719,-34975.3218,0.0001227,2]
[326866136,1715525438728,-944.2035265,0.00012282,2]
[326866137,1715525438737,-179.53,0.0001229,2]
[326866138,1715525438747,-944.2035265,0.00012293,2]
[326866139,1715525438756,-243186.461,0.000123,2]
[326866140,1715525438765,-944.2035265,0.00012305,2]
[326866141,1715525438775,-944.2035265,0.00012316,2]
[326866142,1715525438784,-944.2035265,0.00012328,2]
[326866143,1715525438794,-944.2035265,0.00012339,2]
[326866144,1715525438803,-944.2035265,0.00012351,2]
[326866145,1715525438812,-179.53,0.00012357,2]
[326866146,1715525438821,-179.53,0.00012357,2]
[326866147,1715525438830,-179.53,0.00012358,2]
[326866148,1715525438839,-32962.22216284,0.00012362,2]
[326866165,1715525439022,-267.46067082,0.00012362,2]
[326866170,1715525440421,-38388.97867024,0.00012362,2]
[326866171,1715525440609,-2175.6673904,0.00012362,2]
[326866186,1715525443354,-8144.74100389,0.00012362,2]
[326866193,1715525443544,-532585.44644994,0.00012362,2]
[326866194,1715525443557,-3793.78999975,0.00012362,2]
[326866195,1715525443569,-3541.42063909,0.00012362,2]
[326866196,1715525443580,-2340.0,0.00012362,2]
[326866198,1715525446375,-750.012,0.00012362,2]
[326866199,1715525446507,-1714.09873865,0.00012362,2]
[326866200,1715525446519,-627.5,0.00012362,2]
[326866202,1715525460418,582.76264612,0.00011161,2]
[326866203,1715525460439,11.68483758,0.00011161,2]
[326866204,1715525496100,456.05393297,0.00011129,2]
[326866205,1715525497272,268.93749325,0.00011129,2]
[326866207,1715525502828,200.77628892,0.00011128,2]
[326866209,1715525687150,156.36,9.091e-05,2]
[326866211,1715525915384,240.996913,0.00011119,2]
[326866212,1715526113605,-0.16719251,0.00018889,20]
[326866213,1715526148769,155.0,0.00011161,2]
[326866214,1715526153300,1213.37270844,0.00011161,2]
[326866215,1715526158963,-942.8047008,0.00021,22]
[326866216,1715526168749,-2000.0,0.00021917,30]
[326866217,1715526168771,-2000.0,0.00021917,30]
[326866218,1715526168793,-2000.0,0.00021917,30]
[326866219,1715526168816,-2000.0,0.00021917,30]
[326866220,1715526168837,-2000.0,0.00021917,30]
[326866221,1715526168861,-2000.0,0.00021917,30]
[326866222,1715526168882,-2000.0,0.00021917,30]
[326866223,1715526168906,-2000.0,0.00021917,30]
[326866224,1715526168928,-2000.0,0.00021917,30]
[326866225,1715526168949,-2000.0,0.00021917,30]
[326866226,1715526168970,-2000.0,0.00021917,30]
[326866227,1715526168993,-2000.0,0.00021917,30]
[326866228,1715526169016,-2000.0,0.00021917,30]
[326866229,1715526169041,-2000.0,0.00021917,30]
[326866230,1715526169061,-2000.0,0.00021917,30]
[326866231,1715526169082,-2000.0,0.00021917,30]
[326866232,1715526169103,-2000.0,0.00021917,30]
[326866233,1715526169123,-1612.31484428,0.00021917,30]
[326866234,1715526169148,-900.0,0.00022,23]
[326866235,1715526174677,1296.81782584,0.00011161,2]
[326866236,1715526174700,1790.7289595,0.00011161,2]
[326866240,1715526193420,260.4209643,0.00011161,2]
[326866243,1715526216150,-900.0,0.00023,24]
[326866244,1715526295474,-900.0,0.00024,25]
[326866245,1715526317181,-1558.02,0.00024109,20]
[326866246,1715526317203,-1558.02,0.00024383,21]
[326866247,1715526317225,-1558.02,0.00024657,22]
[326866248,1715526317249,-1558.02,0.00024931,23]
[326866249,1715526317273,-900.0,0.00025,26]
[326866250,1715526344383,159.71369038,0.00011068,2]
[326866251,1715526428920,529.41,0.00011114,2]
[326866252,1715526504088,260.4209643,0.00011161,2]
[326866253,1715526527821,-1558.02,0.00025205,24]
[326866254,1715526527845,-1558.13427144,0.00025479,25]
[326866255,1715526527867,-900.0,0.00026,27]
[326866256,1715526528439,999.30542152,0.00011114,2]
[326866257,1715526528461,4000.0,0.00011114,2]
[326866258,1715526528484,4000.0,0.00011114,2]
[326866259,1715526528512,4000.0,0.00011114,2]
[326866260,1715526528534,3022.14563096,0.00011114,2]
[326866261,1715526540183,-900.0,0.00027,28]
[326866264,1715526559178,-517.81,0.00027288,30]
[326866265,1715526559208,-360.53875657,0.000275,30]
[326866266,1715526559235,-157.051106,0.00028498,20]
[326866267,1715526559261,-162.44183883,0.000285,120]
[326866268,1715526559288,-157.051107,0.00028798,20]
[326866269,1715526574959,250.0,0.00010826,2]
[326866270,1715526575216,485.44,0.00027288,30]
[326866274,1715526629937,-157.051107,0.00029198,20]
[326866275,1715526629959,-1208.0,0.00029225,30]
[326866276,1715526629982,-157.051107,0.00029498,24]
[326866277,1715526630007,-157.051107,0.00029798,24]
[326866278,1715526630030,-27564.35959916,0.00029846,30]
[326866292,1715526633325,-600.0,0.00011162,2]
[326866300,1715526633755,-42.95246665,0.00011162,2]
[326866302,1715526633765,-150.0,0.00011163,2]
[326866304,1715526633774,-426.78540333,0.00011167,2]
[326866327,1715526634205,-909.53111454,0.00011167,2]
[326866328,1715526634218,-201.99,0.00011181,2]
[326866329,1715526634227,-661.2,0.00011185,2]
[326866330,1715526634236,-300.0,0.000112,4]
[326866331,1715526634246,-167.23,0.00011217,2]
[326866332,1715526634255,-189.03,0.00011239,2]
[326866333,1715526634265,-470.59,0.0001126,2]
[326866334,1715526634274,-499.99,0.0001126,2]
[326866335,1715526634283,-700.0,0.000113,4]
[326866336,1715526634292,-160.98458522,0.00011323,2]
[326866337,1715526634302,-1000.0,0.000114,4]
[326866338,1715526634311,-167.17,0.0001141,2]
[326866339,1715526634321,-300.0,0.00011418,2]
[326866340,1715526634330,-4120.02025571,0.00011419,2]
[326866341,1715526634341,-6744.07354922,0.00011419,2]
[326866352,1715526638964,-24012.542768,0.00011419,2]
[326866353,1715526638974,-6817.457232,0.0001142,2]
[326866354,1715526638985,-724.47112772,0.0001142,2]
[326866355,1715526639148,-1055.98696552,0.0001142,2]
[326866356,1715526639160,-18136.60000014,0.0001142,2]
[326866357,1715526639172,-337673.64384262,0.0001142,2]
[326866358,1715526639181,-194.03,0.00011423,2]
[326866359,1715526639191,-1400.0,0.000115,4]
[326866360,1715526639200,-260.4209643,0.00011599,2]
[326866361,1715526639214,-1700.0,0.000116,4]
[326866362,1715526639223,-300.0,0.000117,4]
[326866363,1715526639233,-1136.92665667,0.0001171,2]
[326866364,1715526639242,-300.0,0.000118,4]
[326866365,1715526639252,-300.0,0.000119,4]
[326866366,1715526639261,-300.0,0.00012,2]
[326866367,1715526639271,-1000.0,0.000122,2]
[326866368,1715526639281,-7704.69046311,0.00012203,2]
[326866369,1715526639290,-163.88087739,0.00012228,2]
[326866370,1715526639299,-167.17,0.00012259,2]
[326866371,1715526639308,-3548.77598521,0.00012267,2]
[326866372,1715526639321,-3548.77598516,0.00012267,2]
[326866373,1715526639330,-3548.77598516,0.00012268,2]
[326866374,1715526639340,-3548.77598516,0.00012268,2]
[326866375,1715526639349,-3548.77598516,0.00012268,2]
[326866376,1715526639359,-3548.77598516,0.00012269,2]
[326866377,1715526639368,-3548.77598516,0.00012269,2]
[326866378,1715526639377,-3548.77598516,0.0001227,2]
[326866379,1715526639386,-3548.77598516,0.0001227,2]
[326866380,1715526639395,-3548.77598516,0.0001227,2]
[326866381,1715526639405,-3548.77598516,0.00012271,2]
[326866382,1715526639414,-3548.77598516,0.00012271,2]
[326866383,1715526639424,-2640.09601,0.0001228,2]
[326866384,1715526639433,-210.0,0.0001228,2]
[326866385,1715526639442,-209.0,0.000123,2]
[326866386,1715526639451,-696.99937057,0.00012315,2]
[326866387,1715526639460,-247.75883199,0.00012318,2]
[326866388,1715526639469,-167.17,0.00012318,2]
[326866389,1715526639479,-936433.0,0.00012325,2]
[326866390,1715526639489,-156.68704297,0.00012326,2]
[326866391,1715526639499,-3083.8931386,0.00012326,2]
[326866392,1715526639509,-208.45002039,0.00012326,2]
[326866393,1715526639520,-196.8758743,0.00012326,2]
[326866394,1715526639530,-392.43718635,0.00012326,2]
[326866395,1715526639540,-166.33678538,0.00012326,2]
[326866396,1715526639549,-303.44648221,0.00012327,2]
[326866397,1715526639560,-284.54699808,0.00012327,2]
[326866399,1715526639575,-10846.21115518,0.00012327,2]
[326866401,1715526639586,-3503.24646015,0.00012327,2]
[326866403,1715526639596,-500.0,0.00012328,2]
[326866405,1715526639607,-500.0,0.00012328,2]
[326866407,1715526639617,-585.08932331,0.00012328,2]
[326866409,1715526639628,-500.0,0.00012328,2]
[326866410,1715526639638,-500.0,0.00012328,2]
[326866412,1715526639651,-500.0,0.00012328,2]
[326866414,1715526639663,-500.0,0.00012328,2]
[326866416,1715526639673,-500.0,0.00012328,2]
[326866443,1715526639950,-500.0,0.00012328,2]
[326866446,1715526639972,-510.6545631,0.00012328,2]
[326866448,1715526639982,-500.0,0.00012328,2]
[326866450,1715526639992,-500.0,0.00012328,2]
[326866452,1715526640002,-500.0,0.00012328,2]
[326866454,1715526640011,-500.0,0.00012328,2]
[326866456,1715526640021,-500.0,0.00012328,2]
[326866458,1715526640030,-500.0,0.00012328,2]
[326866459,1715526640040,-500.0,0.00012328,2]
[326866461,1715526640050,-500.0,0.00012328,2]
[326866463,1715526640059,-428.8,0.00012328,2]
[326866464,1715526640073,-507.28538708,0.00012328,2]
[326866465,1715526640082,-500.0,0.00012328,2]
[326866466,1715526640091,-402.69254812,0.00012328,2]
[326866467,1715526640101,-500.0,0.00012328,2]
[326866468,1715526640110,-500.0,0.00012328,2]
[326866469,1715526640120,-500.0,0.00012328,2]
[326866470,1715526640129,-500.0,0.00012328,2]
[326866471,1715526640139,-500.0,0.00012328,2]
[326866472,1715526640149,-500.0,0.00012328,2]
[326866473,1715526640158,-509.56566999,0.00012328,2]
[326866474,1715526640168,-629.47,0.00012328,2]
[326866475,1715526640181,-500.0,0.00012328,2]
[326866476,1715526640191,-629.47,0.00012328,2]
[326866477,1715526640200,-500.0,0.00012328,2]
[326866478,1715526640209,-629.47,0.00012328,2]
[326866479,1715526640219,-500.0,0.00012328,2]
[326866480,1715526640228,-512.98702813,0.00012328,2]
[326866482,1715526640237,-500.0,0.00012328,2]
[326866483,1715526640247,-500.0,0.00012328,2]
[326866484,1715526640256,-500.0,0.00012328,2]
[326866485,1715526640265,-500.0,0.00012328,2]
[326866486,1715526640275,-205.49343732,0.00012328,2]
[326866487,1715526640284,-539.51,0.00012328,2]
[326866488,1715526640293,-500.0,0.00012328,2]
[326866489,1715526640303,-539.51,0.00012328,2]
[326866490,1715526640312,-500.0,0.00012328,2]
[326866491,1715526640323,-500.0,0.00012328,2]
[326866492,1715526640332,-500.0,0.00012328,2]
[326866493,1715526640341,-500.0,0.00012328,2]
[326866494,1715526640349,-500.0,0.00012328,2]
[326866495,1715526640358,-500.0,0.00012328,2]
[326866496,1715526640367,-500.0,0.00012328,2]
[326866497,1715526640377,-500.0,0.00012328,2]
[326866498,1715526640386,-500.0,0.00012328,2]
[326866499,1715526640395,-500.0,0.00012328,2]
[326866500,1715526640405,-539.51,0.00012328,2]
[326866501,1715526640415,-513.64675288,0.00012328,2]
[326866502,1715526640425,-503.70458072,0.00012328,2]
[326866503,1715526640434,-500.0,0.00012328,2]
[326866504,1715526640443,-500.0,0.00012328,2]
[326866505,1715526640452,-545.94774549,0.00012328,2]
[326866506,1715526640462,-705.74,0.00012328,2]
[326866507,1715526640471,-821.54,0.00012328,2]
[326866508,1715526640480,-744.76,0.00012328,2]
[326866509,1715526640489,-821.54,0.00012328,2]
[326866510,1715526640498,-744.76,0.00012328,2]
[326866511,1715526640508,-821.54,0.00012328,2]
[326866512,1715526640517,-744.76,0.00012328,2]
[326866513,1715526640526,-705.74,0.00012328,2]
[326866514,1715526640536,-705.74,0.00012328,2]
[326866515,1715526640546,-500.0,0.00012328,2]
[326866516,1715526640555,-500.0,0.00012328,2]
[326866517,1715526640564,-625.03569018,0.00012328,2]
[326866518,1715526640576,-1802.62,0.00012328,2]
[326866522,1715526640585,-1802.62,0.00012328,2]
[326866525,1715526640595,-1802.62,0.00012328,2]
[326866527,1715526640605,-500.0,0.00012328,2]
[326866529,1715526640614,-500.0,0.00012328,2]
[326866531,1715526640624,-500.0,0.00012328,2]
[326866533,1715526640633,-500.0,0.00012328,2]
[326866535,1715526640644,-500.0,0.00012328,2]
[326866536,1715526640656,-500.0,0.00012328,2]
[326866537,1715526640665,-368.13120194,0.00012328,2]
[326866539,1715526640675,-500.0,0.00012328,2]
[326866540,1715526640684,-500.0,0.00012328,2]
[326866541,1715526640693,-500.0,0.00012328,2]
[326866542,1715526640703,-500.0,0.00012328,2]
[326866543,1715526640712,-641.49,0.00012328,2]
[326866544,1715526640721,-500.0,0.00012328,2]
[326866545,1715526640731,-500.0,0.00012328,2]
[326866546,1715526640741,-500.0,0.00012328,2]
[326866547,1715526640750,-641.49,0.00012328,2]
[326866548,1715526640760,-641.49,0.00012328,2]
[326866549,1715526640769,-975.47,0.00012328,2]
[326866550,1715526640779,-294.10276914,0.00012328,2]
[326866551,1715526640788,-975.47,0.00012328,2]
[326866552,1715526640798,-975.47,0.00012328,2]